[Event "*** Titled Tuesday Blitz"]
[Site "Chess.com"]
[Date "2019.02.05"]
[Round "2"]
[White "Alexander_Donchenko"]
[Black "moro182"]
[Result "1-0"]
[WhiteElo "2673"]
[BlackElo "2751"]
[TimeControl "180+2"]
[EndTime "13:22:58 PST"]
[Termination "Alexander_Donchenko won by checkmate"]

1. Nf3 {[%clk 0:03:01.9]} 1... d5 {[%clk 0:03:01]} 2. g3 {[%clk 0:03:02.4]} 2...
Nf6 {[%clk 0:03:01.8]} 3. Bg2 {[%clk 0:03:03.7]} 3... e6 {[%clk 0:03:01.8]} 4.
O-O {[%clk 0:03:04.7]} 4... c5 {[%clk 0:03:03.1]} 5. c4 {[%clk 0:03:03.2]} 5...
d4 {[%clk 0:03:04.2]} 6. e3 {[%clk 0:03:04.6]} 6... Nc6 {[%clk 0:03:05.5]} 7.
exd4 {[%clk 0:03:06.1]} 7... cxd4 {[%clk 0:03:07.4]} 8. d3 {[%clk 0:03:07.8]}
8... h6 {[%clk 0:03:06.9]} 9. Re1 {[%clk 0:03:04.6]} 9... Bd6 {[%clk 0:03:07.2]}
10. Na3 {[%clk 0:03:01.4]} 10... O-O {[%clk 0:03:04.1]} 11. Bd2 {[%clk
0:02:55.2]} 11... Re8 {[%clk 0:02:49.1]} 12. Rc1 {[%clk 0:02:46]} 12... e5
{[%clk 0:02:37.1]} 13. c5 {[%clk 0:02:46.3]} 13... Bf8 {[%clk 0:02:07.5]} 14. b4
{[%clk 0:02:45.5]} 14... a5 {[%clk 0:01:42.7]} 15. b5 {[%clk 0:02:10.6]} 15...
Nb4 {[%clk 0:01:41.7]} 16. Nxe5 {[%clk 0:02:11.3]} 16... Nxa2 {[%clk 0:01:28.1]}
17. Ra1 {[%clk 0:01:34.2]} 17... Nb4 {[%clk 0:01:12]} 18. c6 {[%clk 0:01:30.2]}
18... Qc7 {[%clk 0:00:50.7]} 19. Nac4 {[%clk 0:01:14.6]} 19... bxc6 {[%clk
0:00:46.2]} 20. Nxc6 {[%clk 0:01:15.8]} 20... Rxe1+ {[%clk 0:00:44]} 21. Bxe1
{[%clk 0:01:16.8]} 21... Nxc6 {[%clk 0:00:29.4]} 22. bxc6 {[%clk 0:01:08.9]}
22... a4 {[%clk 0:00:13.4]} 23. Rxa4 {[%clk 0:01:06.9]} 23... Bg4 {[%clk
0:00:14.5]} 24. Qa1 {[%clk 0:00:57.9]} 24... Rxa4 {[%clk 0:00:08]} 25. Qxa4
{[%clk 0:00:59.8]} 25... Be6 {[%clk 0:00:06.8]} 26. Ba5 {[%clk 0:00:55.7]} 26...
Qb8 {[%clk 0:00:08]} 27. Qc2 {[%clk 0:00:43.2]} 27... Qb5 {[%clk 0:00:07.6]} 28.
c7 {[%clk 0:00:41.4]} 28... Bc5 {[%clk 0:00:08.9]} 29. Bd2 {[%clk 0:00:30.7]}
29... Bc8 {[%clk 0:00:06.8]} 30. Qa2 {[%clk 0:00:26.6]} 30... Qd7 {[%clk
0:00:06.9]} 31. Qa5 {[%clk 0:00:23.5]} 31... Bd6 {[%clk 0:00:06.8]} 32. Nxd6
{[%clk 0:00:22.5]} 32... Qxd6 {[%clk 0:00:08.7]} 33. Bf4 {[%clk 0:00:23.2]}
33... Qe6 {[%clk 0:00:09.4]} 34. h3 {[%clk 0:00:22.7]} 34... g5 {[%clk
0:00:06.7]} 35. Be5 {[%clk 0:00:22.1]} 35... Nd7 {[%clk 0:00:07.5]} 36. Bxd4
{[%clk 0:00:22.3]} 36... Nf8 {[%clk 0:00:03.2]} 37. Be4 {[%clk 0:00:17.3]} 37...
Qd7 {[%clk 0:00:03.9]} 38. Qe5 {[%clk 0:00:16.9]} 38... Ng6 {[%clk 0:00:02.5]}
39. Qg7# {[%clk 0:00:17.4]} 1-0

[Event "*** Titled Tuesday Blitz"]
[Site "Chess.com"]
[Date "2019.02.05"]
[Round "2"]
[White "vpsetter"]
[Black "GMBenjaminBok"]
[Result "1/2-1/2"]
[WhiteElo "2639"]
[BlackElo "2852"]
[TimeControl "180+2"]
[EndTime "13:23:04 PST"]
[Termination "Game drawn by repetition"]

1. e4 {[%clk 0:03:01.2]} 1... c5 {[%clk 0:03:00.3]} 2. Nf3 {[%clk 0:03:01]} 2...
d6 {[%clk 0:03:01.3]} 3. d4 {[%clk 0:03:01.7]} 3... cxd4 {[%clk 0:03:03.2]} 4.
Nxd4 {[%clk 0:03:02.9]} 4... Nf6 {[%clk 0:03:04.6]} 5. Nc3 {[%clk 0:03:04.3]}
5... a6 {[%clk 0:03:06.1]} 6. Bg5 {[%clk 0:03:04.3]} 6... Nbd7 {[%clk
0:03:06.4]} 7. Qe2 {[%clk 0:03:04.4]} 7... h6 {[%clk 0:03:06.8]} 8. Be3 {[%clk
0:03:02.4]} 8... b5 {[%clk 0:03:00.8]} 9. g4 {[%clk 0:02:35.4]} 9... Bb7 {[%clk
0:03:00.6]} 10. Bg2 {[%clk 0:02:36.4]} 10... e6 {[%clk 0:02:58.2]} 11. f4 {[%clk
0:02:24.8]} 11... b4 {[%clk 0:02:54.5]} 12. Nd1 {[%clk 0:02:11.9]} 12... Nxe4
{[%clk 0:02:44.5]} 13. O-O {[%clk 0:02:05.6]} 13... Be7 {[%clk 0:02:44.4]} 14.
f5 {[%clk 0:02:03.2]} 14... e5 {[%clk 0:02:43]} 15. Nb3 {[%clk 0:01:54.4]} 15...
d5 {[%clk 0:02:34.5]} 16. c4 {[%clk 0:01:38.4]} 16... bxc3 {[%clk 0:02:28.1]}
17. Nxc3 {[%clk 0:01:38.6]} 17... Nxc3 {[%clk 0:02:14.7]} 18. bxc3 {[%clk
0:01:39.3]} 18... Qc7 {[%clk 0:02:03.5]} 19. Rad1 {[%clk 0:01:38.3]} 19... Nf6
{[%clk 0:02:01.3]} 20. h4 {[%clk 0:01:18.5]} 20... Ne4 {[%clk 0:01:38.6]} 21.
Bxe4 {[%clk 0:01:14.2]} 21... dxe4 {[%clk 0:01:40.5]} 22. g5 {[%clk 0:01:15.4]}
22... hxg5 {[%clk 0:01:40.4]} 23. hxg5 {[%clk 0:01:16.4]} 23... Rh3 {[%clk
0:01:04.2]} 24. Kg2 {[%clk 0:01:14.4]} 24... Rf3 {[%clk 0:00:56.9]} 25. Rh1
{[%clk 0:00:54.8]} 25... Bd6 {[%clk 0:00:11.9]} 26. Rh8+ {[%clk 0:00:51.1]}
26... Ke7 {[%clk 0:00:12.7]} 27. f6+ {[%clk 0:00:32]} 27... gxf6 {[%clk
0:00:13.1]} 28. gxf6+ {[%clk 0:00:32.9]} 28... Ke6 {[%clk 0:00:12.2]} 29. Nc5+
{[%clk 0:00:10.6]} 29... Bxc5 {[%clk 0:00:11]} 30. Qc4+ {[%clk 0:00:08.1]} 30...
Kf5 {[%clk 0:00:12.3]} 31. Rh5+ {[%clk 0:00:07.4]} 31... Kxf6 {[%clk 0:00:07.4]}
32. Rh6+ {[%clk 0:00:06.2]} 32... Kg7 {[%clk 0:00:08.3]} 33. Rdh1 {[%clk
0:00:04.9]} 33... Rxe3 {[%clk 0:00:05.3]} 34. Rh7+ {[%clk 0:00:06.2]} 34... Kg6
{[%clk 0:00:06.3]} 35. R1h6+ {[%clk 0:00:07]} 35... Kg5 {[%clk 0:00:07]} 36.
Rh5+ {[%clk 0:00:08.2]} 36... Kg6 {[%clk 0:00:06.5]} 37. R5h6+ {[%clk
0:00:09.4]} 37... Kg5 {[%clk 0:00:07]} 38. Rh5+ {[%clk 0:00:10.5]} 38... Kg6
{[%clk 0:00:06.4]} 39. R5h6+ {[%clk 0:00:11.6]} 39... Kg5 {[%clk 0:00:06.8]} 40.
Rh5+ {[%clk 0:00:10.4]} 40... Kg6 {[%clk 0:00:07.9]} 1/2-1/2

[Event "*** Titled Tuesday Blitz"]
[Site "Chess.com"]
[Date "2019.02.05"]
[Round "2"]
[White "ElGasanov"]
[Black "matiss90"]
[Result "1-0"]
[WhiteElo "2719"]
[BlackElo "2465"]
[TimeControl "180+2"]
[EndTime "13:23:06 PST"]
[Termination "ElGasanov won by resignation"]

1. Nf3 {[%clk 0:03:01.9]} 1... Nf6 {[%clk 0:03:00.8]} 2. c4 {[%clk 0:03:02.2]}
2... g6 {[%clk 0:03:02]} 3. Nc3 {[%clk 0:03:02.7]} 3... Bg7 {[%clk 0:03:03.2]}
4. d4 {[%clk 0:03:02.9]} 4... O-O {[%clk 0:03:03.8]} 5. Bg5 {[%clk 0:03:04.4]}
5... d6 {[%clk 0:03:03.1]} 6. e3 {[%clk 0:03:04.9]} 6... c5 {[%clk 0:03:01.3]}
7. d5 {[%clk 0:03:05.4]} 7... h6 {[%clk 0:03:02.4]} 8. Bh4 {[%clk 0:03:04.5]}
8... Qa5 {[%clk 0:03:02.2]} 9. Nd2 {[%clk 0:03:05.1]} 9... a6 {[%clk 0:03:02.5]}
10. a4 {[%clk 0:03:02.1]} 10... e5 {[%clk 0:02:50.1]} 11. Be2 {[%clk 0:03:00.6]}
11... Qc7 {[%clk 0:02:40.2]} 12. a5 {[%clk 0:02:58.3]} 12... Nh7 {[%clk
0:02:40.2]} 13. O-O {[%clk 0:02:54.1]} 13... f5 {[%clk 0:02:37.2]} 14. f3 {[%clk
0:02:51.1]} 14... g5 {[%clk 0:02:27.4]} 15. Bf2 {[%clk 0:02:51.8]} 15... Nd7
{[%clk 0:02:24.4]} 16. Qb1 {[%clk 0:02:50.7]} 16... e4 {[%clk 0:02:12.7]} 17.
fxe4 {[%clk 0:02:50.1]} 17... f4 {[%clk 0:02:13.9]} 18. exf4 {[%clk 0:02:48]}
18... gxf4 {[%clk 0:02:12.4]} 19. Nf3 {[%clk 0:02:39.2]} 19... Ng5 {[%clk
0:02:13.1]} 20. Nh4 {[%clk 0:02:29.5]} 20... Ne5 {[%clk 0:02:12.7]} 21. Qd1
{[%clk 0:02:27]} 21... Qe7 {[%clk 0:01:57.9]} 22. Kh1 {[%clk 0:02:22.2]} 22...
Bf6 {[%clk 0:01:26.5]} 23. Qc2 {[%clk 0:02:07.4]} 23... Ng4 {[%clk 0:01:13.9]}
24. Bxg4 {[%clk 0:02:02.5]} 24... Bxg4 {[%clk 0:01:15.8]} 25. Ng6 {[%clk
0:02:04]} 25... Qf7 {[%clk 0:01:07.3]} 26. e5 {[%clk 0:01:54.5]} 26... Bxe5
{[%clk 0:01:00.1]} 27. Nxe5 {[%clk 0:01:51.1]} 27... dxe5 {[%clk 0:01:00.1]} 28.
Bxc5 {[%clk 0:01:52.7]} 28... f3 {[%clk 0:00:52.9]} 29. Bxf8 {[%clk 0:01:52.9]}
29... Rxf8 {[%clk 0:00:52.5]} 30. Ne4 {[%clk 0:01:38.7]} 30... Qg6 {[%clk
0:00:34]} 31. Rae1 {[%clk 0:01:21.8]} 31... Nxe4 {[%clk 0:00:26]} 32. Qxe4
{[%clk 0:01:15.1]} 32... Qxe4 {[%clk 0:00:07.8]} 33. Rxe4 {[%clk 0:01:16]} 33...
fxg2+ {[%clk 0:00:08.5]} 34. Kxg2 {[%clk 0:01:17.4]} 34... Bh3+ {[%clk
0:00:07.6]} 35. Kxh3 {[%clk 0:01:18.7]} 35... Rxf1 {[%clk 0:00:09.1]} 36. Rxe5
{[%clk 0:01:17.3]} 36... Rc1 {[%clk 0:00:04.9]} 37. d6 {[%clk 0:01:13.2]} 37...
Kf7 {[%clk 0:00:02.5]} 38. d7 {[%clk 0:00:50.5]} 38... Rd1 {[%clk 0:00:02.8]}
39. Rd5 {[%clk 0:00:52]} 39... Rxd5 {[%clk 0:00:03.9]} 40. cxd5 {[%clk
0:00:53.7]} 40... Ke7 {[%clk 0:00:05.3]} 41. Kg4 {[%clk 0:00:55.4]} 41... Kxd7
{[%clk 0:00:06.7]} 42. Kh5 {[%clk 0:00:57.1]} 42... Kd6 {[%clk 0:00:07.9]} 43.
Kxh6 {[%clk 0:00:58.7]} 43... Kxd5 {[%clk 0:00:09.3]} 44. h4 {[%clk 0:01:00]}
44... Kc4 {[%clk 0:00:11]} 45. h5 {[%clk 0:01:01.6]} 45... Kb3 {[%clk
0:00:11.7]} 46. Kg6 {[%clk 0:01:00.9]} 46... Kxb2 {[%clk 0:00:13.1]} 47. h6
{[%clk 0:01:02.6]} 47... Ka3 {[%clk 0:00:14.7]} 48. h7 {[%clk 0:01:03.8]} 48...
Ka4 {[%clk 0:00:16.1]} 49. h8=Q {[%clk 0:01:04.9]} 49... Kxa5 {[%clk 0:00:17.9]}
50. Qb2 {[%clk 0:01:05.2]} 50... b5 {[%clk 0:00:18.8]} 51. Kf5 {[%clk
0:01:06.3]} 51... Kb6 {[%clk 0:00:18.5]} 52. Ke4 {[%clk 0:01:07.1]} 52... a5
{[%clk 0:00:19.9]} 53. Kd4 {[%clk 0:01:08.2]} 1-0

[Event "*** Titled Tuesday Blitz"]
[Site "Chess.com"]
[Date "2019.02.05"]
[Round "2"]
[White "Vamostodorecto"]
[Black "monalize"]
[Result "0-1"]
[WhiteElo "2448"]
[BlackElo "2307"]
[TimeControl "180+2"]
[EndTime "13:23:07 PST"]
[Termination "monalize won by resignation"]

1. d4 {[%clk 0:03:01.9]} 1... d5 {[%clk 0:02:59.8]} 2. c4 {[%clk 0:03:02.4]}
2... dxc4 {[%clk 0:03:00]} 3. Nf3 {[%clk 0:03:02.7]} 3... Nf6 {[%clk 0:03:00.8]}
4. e3 {[%clk 0:03:04.2]} 4... e6 {[%clk 0:03:02]} 5. Bxc4 {[%clk 0:03:05.3]}
5... c5 {[%clk 0:03:03]} 6. O-O {[%clk 0:03:06]} 6... a6 {[%clk 0:03:04]} 7. Nc3
{[%clk 0:03:06.7]} 7... cxd4 {[%clk 0:03:01.7]} 8. exd4 {[%clk 0:03:06.9]} 8...
Be7 {[%clk 0:03:00.6]} 9. Re1 {[%clk 0:02:58.6]} 9... b5 {[%clk 0:03:01.2]} 10.
Bb3 {[%clk 0:02:58.9]} 10... Bb7 {[%clk 0:03:02.1]} 11. Bg5 {[%clk 0:02:59.2]}
11... O-O {[%clk 0:02:59.7]} 12. d5 {[%clk 0:02:13.5]} 12... exd5 {[%clk
0:02:51.2]} 13. Nxd5 {[%clk 0:02:00]} 13... Bxd5 {[%clk 0:02:49.2]} 14. Bxd5
{[%clk 0:01:38.4]} 14... Nxd5 {[%clk 0:02:49]} 15. Bxe7 {[%clk 0:01:33.3]} 15...
Nxe7 {[%clk 0:02:48.2]} 16. Qxd8 {[%clk 0:01:32.3]} 16... Rxd8 {[%clk
0:02:48.9]} 17. Rxe7 {[%clk 0:01:34]} 17... Nc6 {[%clk 0:02:49.9]} 18. Rc7
{[%clk 0:01:25.4]} 18... Nd4 {[%clk 0:02:46.3]} 19. Ne5 {[%clk 0:01:15.8]} 19...
f6 {[%clk 0:02:38]} 20. Ng4 {[%clk 0:01:12.4]} 20... Rac8 {[%clk 0:02:35.1]} 21.
Rxc8 {[%clk 0:01:04.3]} 21... Rxc8 {[%clk 0:02:35.4]} 22. Ne3 {[%clk 0:01:06]}
22... Ne6 {[%clk 0:02:23.6]} 23. Rd1 {[%clk 0:01:02.5]} 23... Kf7 {[%clk
0:02:23.6]} 24. g3 {[%clk 0:00:59.9]} 24... Rc7 {[%clk 0:02:24.1]} 25. Rd6
{[%clk 0:00:59.4]} 25... Ra7 {[%clk 0:02:16.2]} 26. Rb6 {[%clk 0:00:59.2]} 26...
Nc5 {[%clk 0:02:13.9]} 27. Nf5 {[%clk 0:00:52.3]} 27... Na4 {[%clk 0:02:04.4]}
28. Rb8 {[%clk 0:00:35.1]} 28... Nxb2 {[%clk 0:02:04.8]} 29. Nd6+ {[%clk
0:00:34.4]} 29... Kg6 {[%clk 0:02:04.9]} 30. h4 {[%clk 0:00:31.2]} 30... Rd7
{[%clk 0:02:04.3]} 31. Nb7 {[%clk 0:00:17.9]} 31... Nc4 {[%clk 0:02:02.1]} 32.
Nc5 {[%clk 0:00:18.6]} 32... Rd6 {[%clk 0:02:02.5]} 33. Rb7 {[%clk 0:00:16.8]}
33... Rc6 {[%clk 0:02:00.6]} 34. Nd3 {[%clk 0:00:16.4]} 34... Ne5 {[%clk
0:02:00.5]} 35. Nf4+ {[%clk 0:00:16.6]} 35... Kh6 {[%clk 0:02:00.1]} 36. Kg2
{[%clk 0:00:17.9]} 36... Rc2 {[%clk 0:01:58.4]} 37. Ra7 {[%clk 0:00:17.1]} 37...
Rxa2 {[%clk 0:01:58.4]} 38. Ne6 {[%clk 0:00:18.8]} 38... Nd3 {[%clk 0:01:55.6]}
39. Nxg7 {[%clk 0:00:18.4]} 39... Nxf2 {[%clk 0:01:51.6]} 40. Nf5+ {[%clk
0:00:18.1]} 40... Kg6 {[%clk 0:01:51.9]} 41. Ne7+ {[%clk 0:00:18.4]} 41... Kf7
{[%clk 0:01:52.5]} 42. Kf3 {[%clk 0:00:17.3]} 42... Nd3 {[%clk 0:01:49.7]} 43.
Nd5+ {[%clk 0:00:15.6]} 43... Ke6 {[%clk 0:01:49.3]} 44. Nc7+ {[%clk 0:00:14.5]}
44... Ke5 {[%clk 0:01:48.8]} 45. Ke3 {[%clk 0:00:11.9]} 45... Nb4 {[%clk
0:01:45.3]} 46. Nxb5 {[%clk 0:00:11.9]} 46... axb5 {[%clk 0:01:45.6]} 47. Rxh7
{[%clk 0:00:11.6]} 47... Nd5+ {[%clk 0:01:45.8]} 48. Kf3 {[%clk 0:00:12.2]}
48... Ra3+ {[%clk 0:01:46.1]} 49. Kg4 {[%clk 0:00:12.7]} 49... b4 {[%clk
0:01:45.7]} 50. h5 {[%clk 0:00:14]} 50... b3 {[%clk 0:01:45.1]} 51. Rb7 {[%clk
0:00:15.5]} 51... Ra4+ {[%clk 0:01:45.6]} 52. Kh3 {[%clk 0:00:14.8]} 52... Nb4
{[%clk 0:01:38.7]} 53. Rb5+ {[%clk 0:00:13.5]} 53... Ke6 {[%clk 0:01:38.8]} 54.
h6 {[%clk 0:00:07.1]} 54... b2 {[%clk 0:01:39.3]} 55. h7 {[%clk 0:00:07]} 55...
b1=Q {[%clk 0:01:39.6]} 56. Rh5 {[%clk 0:00:07.9]} 56... Qf1+ {[%clk 0:01:39.1]}
57. Kh4 {[%clk 0:00:07.4]} 57... Nd5+ {[%clk 0:01:39.1]} 0-1

[Event "*** Titled Tuesday Blitz"]
[Site "Chess.com"]
[Date "2019.02.05"]
[Round "2"]
[White "ori99"]
[Black "IngOscarArdila"]
[Result "1-0"]
[WhiteElo "2008"]
[BlackElo "2035"]
[TimeControl "180+2"]
[EndTime "13:23:10 PST"]
[Termination "ori99 won by checkmate"]

1. e4 {[%clk 0:02:28.7]} 1... e5 {[%clk 0:02:43.9]} 2. Nf3 {[%clk 0:02:27.7]}
2... Nf6 {[%clk 0:02:41.7]} 3. Nxe5 {[%clk 0:02:23.9]} 3... d6 {[%clk
0:02:42.7]} 4. Nf3 {[%clk 0:02:24.3]} 4... Nxe4 {[%clk 0:02:44.2]} 5. Nc3 {[%clk
0:02:25.1]} 5... Nxc3 {[%clk 0:02:45.3]} 6. dxc3 {[%clk 0:02:27]} 6... Be7
{[%clk 0:02:46.8]} 7. Bd3 {[%clk 0:02:26.9]} 7... O-O {[%clk 0:02:48.7]} 8. Bf4
{[%clk 0:02:26.4]} 8... Nd7 {[%clk 0:02:50.6]} 9. Qd2 {[%clk 0:02:27.3]} 9...
Nf6 {[%clk 0:02:52.5]} 10. O-O-O {[%clk 0:02:23.4]} 10... Be6 {[%clk 0:02:54.4]}
11. Kb1 {[%clk 0:02:21.7]} 11... c5 {[%clk 0:02:56.3]} 12. c4 {[%clk 0:02:22.6]}
12... h6 {[%clk 0:02:58.2]} 13. h3 {[%clk 0:02:22.1]} 13... Qb6 {[%clk
0:02:50.2]} 14. g4 {[%clk 0:02:20.7]} 14... Qa6 {[%clk 0:02:50.9]} 15. b3 {[%clk
0:02:18.8]} 15... Nd7 {[%clk 0:02:38.3]} 16. Bxh6 {[%clk 0:01:57.1]} 16... Bf6
{[%clk 0:02:33.7]} 17. g5 {[%clk 0:01:52]} 17... Be5 {[%clk 0:02:23.6]} 18. Nxe5
{[%clk 0:01:46.6]} 18... Nxe5 {[%clk 0:02:25.5]} 19. g6 {[%clk 0:01:42]} 19...
Nxd3 {[%clk 0:02:20.8]} 20. gxf7+ {[%clk 0:01:28.4]} 20... Rxf7 {[%clk
0:02:20.8]} 21. cxd3 {[%clk 0:01:17.1]} 21... Bf5 {[%clk 0:02:07]} 22. Be3
{[%clk 0:01:12.7]} 22... b5 {[%clk 0:02:00.7]} 23. Ka1 {[%clk 0:01:06.2]} 23...
bxc4 {[%clk 0:02:00.4]} 24. dxc4 {[%clk 0:01:06.4]} 24... Rb8 {[%clk 0:01:58.9]}
25. Qxd6 {[%clk 0:01:03.6]} 25... Rb6 {[%clk 0:01:36]} 26. Qd8+ {[%clk
0:00:44.3]} 26... Rf8 {[%clk 0:01:36.6]} 27. Qd5+ {[%clk 0:00:44.9]} 27... Rf7
{[%clk 0:01:34.4]} 28. Bxc5 {[%clk 0:00:41.5]} 28... Rxb3 {[%clk 0:01:31.1]} 29.
Qd8+ {[%clk 0:00:37.7]} 29... Kh7 {[%clk 0:01:25.7]} 30. Qh4+ {[%clk 0:00:38.1]}
30... Qh6 {[%clk 0:00:48.6]} 31. Qxh6+ {[%clk 0:00:36.1]} 31... Kxh6 {[%clk
0:00:50.5]} 32. axb3 {[%clk 0:00:37.7]} 32... Bc2 {[%clk 0:00:51.3]} 33. Rd6+
{[%clk 0:00:35.7]} 33... Kh7 {[%clk 0:00:52.3]} 34. Kb2 {[%clk 0:00:31.9]} 34...
Be4 {[%clk 0:00:51.7]} 35. Re1 {[%clk 0:00:32.4]} 35... Bg2 {[%clk 0:00:52.3]}
36. Re3 {[%clk 0:00:32.4]} 36... Rxf2+ {[%clk 0:00:51.5]} 37. Kc3 {[%clk
0:00:30.8]} 37... Rf5 {[%clk 0:00:41.1]} 38. Bd4 {[%clk 0:00:28.3]} 38... Rf7
{[%clk 0:00:38.4]} 39. Rg3 {[%clk 0:00:28]} 39... Be4 {[%clk 0:00:37.1]} 40. Re6
{[%clk 0:00:21.6]} 40... Bg6 {[%clk 0:00:31.7]} 41. Rexg6 {[%clk 0:00:21.6]}
41... Rb7 {[%clk 0:00:30.8]} 42. Rxg7+ {[%clk 0:00:22.6]} 42... Rxg7 {[%clk
0:00:31.7]} 43. Rxg7+ {[%clk 0:00:24.5]} 43... Kh6 {[%clk 0:00:32.2]} 44. Kd3
{[%clk 0:00:26]} 44... Kh5 {[%clk 0:00:32.4]} 45. Ke4 {[%clk 0:00:27]} 45... Kh4
{[%clk 0:00:33.6]} 46. Kf4 {[%clk 0:00:26.2]} 46... Kh5 {[%clk 0:00:33.6]} 47.
Kf5 {[%clk 0:00:26.2]} 47... Kh6 {[%clk 0:00:34.5]} 48. Rg8 {[%clk 0:00:23.6]}
48... Kh7 {[%clk 0:00:35.2]} 49. Rh8# {[%clk 0:00:24.5]} 1-0

[Event "*** Titled Tuesday Blitz"]
[Site "Chess.com"]
[Date "2019.02.05"]
[Round "2"]
[White "MatthewG-p4p"]
[Black "Arystanner"]
[Result "1-0"]
[WhiteElo "2669"]
[BlackElo "2759"]
[TimeControl "180+2"]
[EndTime "13:23:14 PST"]
[Termination "MatthewG-p4p won by resignation"]

1. c4 {[%clk 0:02:58]} 1... e5 {[%clk 0:02:59.9]} 2. Nc3 {[%clk 0:02:57.3]} 2...
Nc6 {[%clk 0:03:01.3]} 3. g3 {[%clk 0:02:58.2]} 3... f5 {[%clk 0:03:02.5]} 4.
Bg2 {[%clk 0:02:59.7]} 4... Nf6 {[%clk 0:03:03.4]} 5. d3 {[%clk 0:03:00.9]} 5...
Bb4 {[%clk 0:03:04.6]} 6. e3 {[%clk 0:03:00.4]} 6... O-O {[%clk 0:03:01.9]} 7.
Ne2 {[%clk 0:03:01.5]} 7... f4 {[%clk 0:02:56.3]} 8. exf4 {[%clk 0:02:59.7]}
8... exf4 {[%clk 0:02:57.9]} 9. Bxf4 {[%clk 0:02:57.6]} 9... d5 {[%clk
0:02:59.2]} 10. O-O {[%clk 0:02:53.9]} 10... Be6 {[%clk 0:02:46.4]} 11. cxd5
{[%clk 0:02:44.8]} 11... Nxd5 {[%clk 0:02:48.3]} 12. Nxd5 {[%clk 0:02:46]} 12...
Bxd5 {[%clk 0:02:49.8]} 13. Bxc7 {[%clk 0:02:47.3]} 13... Qd7 {[%clk 0:02:40.7]}
14. Bf4 {[%clk 0:02:36.6]} 14... Bxg2 {[%clk 0:02:37.8]} 15. Kxg2 {[%clk
0:02:38.5]} 15... Rfe8 {[%clk 0:02:37.7]} 16. Nc3 {[%clk 0:02:33.6]} 16... Rad8
{[%clk 0:02:30.1]} 17. Qb3+ {[%clk 0:02:07.1]} 17... Kh8 {[%clk 0:02:30.4]} 18.
Rad1 {[%clk 0:02:08.2]} 18... a5 {[%clk 0:02:24.4]} 19. a3 {[%clk 0:01:57.3]}
19... Nd4 {[%clk 0:02:20.9]} 20. Qc4 {[%clk 0:01:49.4]} 20... Bxc3 {[%clk
0:02:03.3]} 21. bxc3 {[%clk 0:01:48.7]} 21... b5 {[%clk 0:02:02]} 22. Qc7 {[%clk
0:01:19.8]} 22... Qd5+ {[%clk 0:02:01.3]} 23. f3 {[%clk 0:01:19.1]} 23... Rd7
{[%clk 0:01:31.9]} 24. Rde1 {[%clk 0:01:01.7]} 24... Ne2 {[%clk 0:00:52.2]} 25.
Qxa5 {[%clk 0:00:37.7]} 25... Qxd3 {[%clk 0:00:51.6]} 26. Qb4 {[%clk 0:00:30.4]}
26... h6 {[%clk 0:00:43.6]} 27. h4 {[%clk 0:00:18.3]} 27... Rf7 {[%clk
0:00:39.1]} 28. Bc1 {[%clk 0:00:16.3]} 28... Qg6 {[%clk 0:00:31.7]} 29. Qg4
{[%clk 0:00:16.9]} 29... Qc2 {[%clk 0:00:27.1]} 30. Kh3 {[%clk 0:00:17.3]} 30...
Rfe7 {[%clk 0:00:22]} 31. Rd1 {[%clk 0:00:12.8]} 31... Nxc3 {[%clk 0:00:19.5]}
32. Rd2 {[%clk 0:00:12.7]} 32... Qb3 {[%clk 0:00:19.5]} 33. Bb2 {[%clk
0:00:13.9]} 33... Na4 {[%clk 0:00:18.3]} 34. Bd4 {[%clk 0:00:13.1]} 34... Qc4
{[%clk 0:00:17.9]} 35. Rfd1 {[%clk 0:00:12.6]} 35... Qf7 {[%clk 0:00:16]} 36.
Rb1 {[%clk 0:00:10.9]} 36... Rb7 {[%clk 0:00:15.6]} 37. Rc2 {[%clk 0:00:09.7]}
37... Kh7 {[%clk 0:00:16.7]} 38. Rc6 {[%clk 0:00:10.3]} 38... Re2 {[%clk
0:00:15.7]} 39. h5 {[%clk 0:00:11.7]} 39... Rd7 {[%clk 0:00:15.5]} 40. Qg6+
{[%clk 0:00:12.6]} 1-0

[Event "*** Titled Tuesday Blitz"]
[Site "Chess.com"]
[Date "2019.02.05"]
[Round "2"]
[White "The_bird_of_peace"]
[Black "vovachesss"]
[Result "1-0"]
[WhiteElo "2866"]
[BlackElo "2577"]
[TimeControl "180+2"]
[EndTime "13:23:16 PST"]
[Termination "The_bird_of_peace won by resignation"]

1. d4 {[%clk 0:03:01.9]} 1... c5 {[%clk 0:02:43]} 2. e3 {[%clk 0:03:02]} 2...
cxd4 {[%clk 0:02:41.7]} 3. exd4 {[%clk 0:03:03.9]} 3... d5 {[%clk 0:02:42.6]} 4.
Nf3 {[%clk 0:03:05.2]} 4... Nc6 {[%clk 0:02:32.1]} 5. c4 {[%clk 0:02:43.6]} 5...
Nf6 {[%clk 0:02:28.5]} 6. Nc3 {[%clk 0:02:42.8]} 6... e6 {[%clk 0:02:28.3]} 7.
Bd3 {[%clk 0:02:41.7]} 7... Be7 {[%clk 0:02:22.4]} 8. O-O {[%clk 0:02:41.8]}
8... O-O {[%clk 0:02:23.6]} 9. Bg5 {[%clk 0:02:26.9]} 9... h6 {[%clk 0:02:21.1]}
10. Bh4 {[%clk 0:02:27.3]} 10... dxc4 {[%clk 0:02:20.4]} 11. Bxc4 {[%clk
0:02:28]} 11... Nd5 {[%clk 0:02:21.9]} 12. Bg3 {[%clk 0:02:20.3]} 12... b6
{[%clk 0:02:14.8]} 13. Nxd5 {[%clk 0:02:18.8]} 13... exd5 {[%clk 0:02:15.7]} 14.
Bb5 {[%clk 0:02:19.4]} 14... Bb7 {[%clk 0:02:16.5]} 15. Rc1 {[%clk 0:02:19.5]}
15... Rc8 {[%clk 0:02:17.1]} 16. Bf4 {[%clk 0:02:16]} 16... Bf6 {[%clk
0:02:14.3]} 17. a3 {[%clk 0:02:10.4]} 17... a6 {[%clk 0:01:30.8]} 18. Ba4 {[%clk
0:02:09.3]} 18... b5 {[%clk 0:01:27.3]} 19. Bc2 {[%clk 0:02:08.3]} 19... Re8
{[%clk 0:01:25.7]} 20. Bf5 {[%clk 0:02:00.5]} 20... Ra8 {[%clk 0:01:11.6]} 21.
h3 {[%clk 0:01:51.9]} 21... Qb6 {[%clk 0:00:56.9]} 22. Be3 {[%clk 0:01:47.2]}
22... Rad8 {[%clk 0:00:34.1]} 23. Bb1 {[%clk 0:01:42.7]} 23... g6 {[%clk
0:00:18.2]} 24. Qd2 {[%clk 0:01:42.3]} 24... h5 {[%clk 0:00:18.3]} 25. Rfd1
{[%clk 0:01:41.3]} 25... Ne7 {[%clk 0:00:17.5]} 26. Ne5 {[%clk 0:01:37.1]} 26...
Bg7 {[%clk 0:00:14.7]} 27. Re1 {[%clk 0:01:11.8]} 27... Nc6 {[%clk 0:00:15.9]}
28. Bg5 {[%clk 0:01:00.8]} 28... Rc8 {[%clk 0:00:12.1]} 29. Be3 {[%clk 0:00:39]}
29... Nxe5 {[%clk 0:00:10.7]} 30. dxe5 {[%clk 0:00:40.9]} 30... Qe6 {[%clk
0:00:09.2]} 31. f4 {[%clk 0:00:41.5]} 31... Rxc1 {[%clk 0:00:08.6]} 32. Rxc1
{[%clk 0:00:43.4]} 32... f6 {[%clk 0:00:08.2]} 33. Bxg6 {[%clk 0:00:43.3]} 33...
Rf8 {[%clk 0:00:07.3]} 34. Rc7 {[%clk 0:00:38.9]} 34... fxe5 {[%clk 0:00:07.5]}
35. f5 {[%clk 0:00:38.9]} 35... Rxf5 {[%clk 0:00:02.6]} 36. Bxf5 {[%clk
0:00:40.8]} 36... Qxf5 {[%clk 0:00:02.9]} 37. Rxb7 {[%clk 0:00:42]} 37... d4
{[%clk 0:00:04.5]} 38. Bh6 {[%clk 0:00:34.6]} 38... Bf6 {[%clk 0:00:04.7]} 39.
Qf2 {[%clk 0:00:30.7]} 39... Qb1+ {[%clk 0:00:04.9]} 40. Kh2 {[%clk 0:00:31.3]}
40... Qg6 {[%clk 0:00:06.8]} 41. Qg3 {[%clk 0:00:28.1]} 41... Qxg3+ {[%clk
0:00:06.8]} 42. Kxg3 {[%clk 0:00:30]} 42... e4 {[%clk 0:00:08.4]} 43. Rd7 {[%clk
0:00:28.1]} 43... d3 {[%clk 0:00:09.5]} 44. b3 {[%clk 0:00:28.6]} 44... Be5+
{[%clk 0:00:08]} 45. Kf2 {[%clk 0:00:26.7]} 45... a5 {[%clk 0:00:09.7]} 46. a4
{[%clk 0:00:27.3]} 46... bxa4 {[%clk 0:00:10.7]} 47. bxa4 {[%clk 0:00:29.2]}
47... Bc3 {[%clk 0:00:11.9]} 48. Be3 {[%clk 0:00:29.7]} 1-0